bitfinex/quotes_BTCUSD_20250620
["timestamp","ask_amount","ask_price","bid_price","bid_amount"]
[1750386600717,7.03841822,104840.0,104830.0,0.0011]
[1750386601297,7.03841822,104840.0,104830.0,0.0171]
[1750386602195,6.70753697,104840.0,104830.0,0.0171]
[1750386605084,6.70753694,104840.0,104830.0,0.0171]
[1750386607581,6.70753676,104840.0,104830.0,0.0171]
[1750386607788,6.73616056,104840.0,104830.0,0.0171]
[1750386608212,6.73616056,104840.0,104830.0,0.0332]
[1750386612566,6.73616056,104840.0,104830.0,0.0171]
[1750386612776,6.73616056,104840.0,104830.0,0.0327]
[1750386613824,6.73616056,104840.0,104800.0,0.19483336]
[1750386613825,0.02862184,104810.0,104800.0,0.19483336]
[1750386614045,6.06364966,104810.0,104800.0,0.19483336]
[1750386614267,6.05410941,104810.0,104800.0,0.18529174]
[1750386614489,6.05410941,104810.0,104800.0,0.20437525]
[1750386615163,6.05410941,104810.0,104800.0,0.20651658]
[1750386616067,6.05410941,104810.0,104800.0,0.20772658]
[1750386616280,6.05410941,104810.0,104800.0,0.2202681]
[1750386616499,6.05410941,104810.0,104800.0,0.22980953]
[1750386616725,6.06365021,104810.0,104800.0,0.22980953]
[1750386616957,5.40188787,104810.0,104800.0,0.26160898]
[1750386617173,6.06365021,104810.0,104800.0,0.26160898]
[1750386617359,5.87282855,104810.0,104800.0,0.26160898]
[1750386617801,5.54194674,104810.0,104800.0,0.26160898]
[1750386618023,0.73878274,104810.0,104800.0,0.26160898]
[1750386618949,0.74832363,104810.0,104800.0,0.26160898]
[1750386620324,6.30330844,104810.0,104800.0,0.03815133]
[1750386621042,5.9725473,104810.0,104800.0,0.03815133]
[1750386621295,6.39881835,104810.0,104800.0,0.03494133]
[1750386621532,6.32645259,104810.0,104800.0,0.03594133]
[1750386621770,6.32645259,104810.0,104800.0,0.02034133]
[1750386622027,6.34648259,104810.0,104800.0,0.00414133]
[1750386622268,5.34358374,104780.0,104770.0,0.00131]
[1750386622509,5.86778494,104780.0,104770.0,0.00131]
[1750386622738,5.86778494,104780.0,104770.0,0.01983523]
[1750386622959,5.86778494,104780.0,104770.0,0.21072947]
[1750386623221,5.886912,104780.0,104770.0,0.21072956]
[1750386623433,5.72340865,104780.0,104770.0,0.01029052]
[1750386623681,5.87736865,104780.0,104770.0,0.01029052]
[1750386623887,5.87736865,104780.0,104770.0,0.01008052]
[1750386624093,5.87736865,104780.0,104770.0,0.01122052]
[1750386624298,6.0017762,104780.0,104770.0,0.01122052]
[1750386624475,6.0017762,104780.0,104770.0,0.01222052]
[1750386624712,6.3505774,104780.0,104770.0,0.01108052]
[1750386624957,6.3517774,104780.0,104770.0,0.01108052]
[1750386625175,6.3804634,104780.0,104770.0,0.01108052]
[1750386625413,6.3804634,104780.0,104770.0,0.01106266]
[1750386626044,6.3804634,104780.0,104770.0,0.01106268]
[1750386626706,6.3804634,104780.0,104770.0,0.00214707]
[1750386627341,6.0494622,104780.0,104770.0,0.00214707]
[1750386627586,6.0304622,104780.0,104770.0,0.01784707]
[1750386627810,6.3806634,104780.0,104770.0,0.00214707]
[1750386631282,6.3806634,104780.0,104770.0,0.00114707]
[1750386631713,6.3806634,104780.0,104770.0,0.00014707]
[1750386632388,6.3988634,104780.0,104770.0,0.00014707]
[1750386633062,6.4028634,104780.0,104770.0,0.00014707]
[1750386633285,6.3988634,104780.0,104770.0,0.00014707]
[1750386633475,6.49413325,104780.0,104770.0,0.00014707]
[1750386633728,6.49613325,104780.0,104770.0,0.00014707]
[1750386633935,6.4008634,104780.0,104770.0,0.00014707]
[1750386634185,6.4058634,104780.0,104770.0,0.00014707]
[1750386634398,6.42040425,104780.0,104770.0,0.00014707]
[1750386635687,6.44316712,104780.0,104770.0,0.00014707]
[1750386635893,6.53843697,104780.0,104770.0,0.00014707]
[1750386638304,6.44316712,104780.0,104770.0,0.00014707]
[1750386640052,6.42496712,104780.0,104770.0,0.00014707]
[1750386640577,6.44316712,104780.0,104770.0,0.00014707]
[1750386645680,0.55000317,104760.0,104750.0,0.0357]
[1750386645915,6.3037285,104760.0,104750.0,0.06360043]
[1750386646238,6.3037285,104760.0,104750.0,0.0547102]
[1750386646437,6.3037285,104760.0,104750.0,0.0535702]
[1750386646639,6.3037285,104760.0,104750.0,0.0547102]
[1750386647041,6.3047285,104760.0,104750.0,0.0547102]
[1750386647359,6.3047285,104760.0,104750.0,0.06361283]
[1750386648204,6.3047285,104760.0,104750.0,0.06247283]
[1750386648357,6.3047285,104760.0,104750.0,0.04527283]
[1750386648564,6.32755276,104760.0,104750.0,0.04527283]
[1750386648762,6.35502511,104760.0,104750.0,0.0363702]
[1750386648995,6.35502511,104760.0,104750.0,0.04643762]
[1750386649334,0.54047713,104750.0,104740.0,0.017]
[1750386649578,0.54047713,104750.0,104730.0,0.00124]
[1750386649579,5.66566267,104740.0,104730.0,0.00124]
[1750386649780,5.9542216,104740.0,104730.0,0.00124]
[1750386649992,5.9542216,104740.0,104730.0,0.00128711]
[1750386650753,5.9542216,104740.0,104730.0,0.00228711]
[1750386651772,5.9542216,104740.0,104730.0,0.00114711]
[1750386651973,5.9542216,104740.0,104730.0,0.00228711]
[1750386652573,5.97708889,104740.0,104730.0,0.02058711]
[1750386652764,5.97708889,104740.0,104730.0,0.02258711]
[1750386652973,5.97708889,104740.0,104730.0,0.02158711]
[1750386653420,5.97708889,104740.0,104730.0,0.03648711]
[1750386658003,5.97708889,104740.0,104730.0,0.01958711]
[1750386658629,5.97708889,104740.0,104730.0,0.01844711]
[1750386658838,5.99458889,104740.0,104730.0,0.00014711]
[1750386659479,5.99458889,104740.0,104730.0,0.01838711]
[1750386659906,5.97708889,104740.0,104730.0,0.01838711]
[1750386660374,5.78380889,104740.0,104730.0,0.01838711]
[1750386660591,5.97712889,104740.0,104730.0,0.01838711]
[1750386663189,5.99482889,104740.0,104730.0,0.00014711]
[1750386664387,5.99482889,104740.0,104730.0,0.01684711]
[1750386666854,6.43009874,104740.0,104730.0,0.00014711]
[1750386667625,6.33482889,104740.0,104730.0,0.00014711]
[1750386667839,6.36469269,104740.0,104730.0,0.00014711]
[1750386668048,6.38139269,104740.0,104730.0,0.00014711]
[1750386668285,6.38015269,104740.0,104730.0,0.00014711]
[1750386668495,6.41939982,104740.0,104730.0,0.00014711]
[1750386668736,6.44248175,104740.0,104730.0,0.00014711]
[1750386668962,0.54051542,104730.0,104720.0,0.0001]
[1750386669177,6.32651619,104730.0,104720.0,0.00057178]
[1750386669393,6.33321942,104730.0,104720.0,0.00057178]
[1750386670047,6.35235942,104730.0,104720.0,0.00057178]
[1750386670701,6.35335942,104730.0,104720.0,0.00057178]
[1750386670917,6.34665619,104730.0,104720.0,0.00057178]
[1750386671132,6.34541619,104730.0,104720.0,0.00057178]
[1750386671407,6.34741619,104730.0,104720.0,0.00057178]
[1750386672056,6.19237619,104730.0,104720.0,0.00057178]
[1750386672281,6.36893619,104730.0,104720.0,0.01931178]
[1750386672494,6.37564044,104730.0,104720.0,0.01931178]
[1750386673784,6.36893619,104730.0,104720.0,0.01931178]
[1750386674270,6.36889619,104730.0,104720.0,0.01931178]
[1750386674501,6.34028804,104730.0,104720.0,0.03621178]
[1750386674966,6.34028804,104730.0,104720.0,0.01931178]
[1750386675675,6.14596804,104730.0,104720.0,0.01931178]
[1750386675908,6.34028804,104730.0,104720.0,0.01931178]
[1750386676156,5.67828564,104730.0,104720.0,0.01931178]
[1750386676387,6.34028804,104730.0,104720.0,0.01931178]
[1750386676631,6.14596804,104730.0,104720.0,0.01931178]
[1750386676835,6.34032804,104730.0,104720.0,0.01931178]
[1750386677798,6.45159789,104730.0,104720.0,0.00057178]
[1750386678039,6.53026673,104730.0,104720.0,0.00057178]
[1750386678283,6.56202511,104730.0,104720.0,0.00057178]
[1750386678776,6.56202511,104730.0,104710.0,0.0001]
[1750386678777,5.35979857,104720.0,104710.0,0.0001]
[1750386679033,6.29522719,104720.0,104710.0,0.0001]
[1750386679272,6.40605441,104720.0,104710.0,0.0001]
[1750386679714,6.37429603,104720.0,104710.0,0.0001]
[1750386680647,6.39553823,104720.0,104710.0,0.0001]
[1750386680860,6.03862012,104710.0,104700.0,0.0001]
[1750386681078,6.29534634,104710.0,104700.0,0.0001]
[1750386681501,6.29658634,104710.0,104700.0,0.0001]
[1750386681740,6.31358634,104710.0,104700.0,0.0001]
[1750386681957,6.34219449,104710.0,104700.0,0.0001]
[1750386682160,6.34219449,104710.0,104700.0,0.01797401]
[1750386682374,6.31358634,104710.0,104700.0,0.0001]
[1750386682579,6.31558634,104710.0,104700.0,0.0001]
[1750386682790,6.31758634,104710.0,104700.0,0.0001]
[1750386683670,6.34621618,104710.0,104700.0,0.0001]
[1750386685341,6.57569618,104710.0,104700.0,0.0001]
[1750386687094,5.91369378,104710.0,104700.0,0.0001]
[1750386687305,6.59777618,104710.0,104700.0,0.0001]
[1750386688379,6.62648318,104710.0,104700.0,0.0001]
[1750386688906,6.43048318,104710.0,104700.0,0.0001]
[1750386689118,6.62648318,104710.0,104700.0,0.0001]
[1750386689749,6.41468318,104710.0,104700.0,0.0161]
[1750386689950,6.61068318,104710.0,104700.0,0.01726]
[1750386690161,6.61068318,104710.0,104700.0,0.03510001]
[1750386691907,6.41468318,104710.0,104700.0,0.03510001]
[1750386692309,6.61064318,104710.0,104700.0,0.03510001]
[1750386692506,6.62694318,104710.0,104700.0,0.01794001]
[1750386692722,6.62694318,104710.0,104700.0,0.0001]
[1750386692926,6.62690318,104710.0,104700.0,0.0001]
[1750386693358,6.65668133,104710.0,104700.0,0.0001]
[1750386693590,6.67408133,104710.0,104700.0,0.0001]
[1750386695620,6.67408133,104710.0,104700.0,0.01796039]
[1750386695821,6.67408133,104710.0,104700.0,0.0001]
[1750386696459,6.67416133,104710.0,104700.0,0.0001]
[1750386697329,6.71230334,104710.0,104700.0,0.0001]
[1750386697547,6.67416133,104710.0,104700.0,0.0001]
[1750386697767,6.67416133,104710.0,104700.0,0.01796024]
[1750386697994,6.67416133,104710.0,104700.0,0.0001]
[1750386698430,6.71230334,104710.0,104700.0,0.0001]
[1750386698662,6.67416133,104710.0,104700.0,0.01796933]
[1750386699287,6.71230334,104710.0,104700.0,0.01796933]
[1750386699500,6.71900262,104710.0,104700.0,0.01796933]
[1750386699949,6.71783262,104710.0,104700.0,0.01796933]
[1750386700174,6.71783262,104710.0,104700.0,0.01797023]
[1750386700617,6.71780622,104710.0,104700.0,0.01797023]
[1750386700830,6.70040622,104710.0,104700.0,0.01797023]
[1750386701460,6.54464622,104710.0,104700.0,0.03437023]
[1750386701665,6.70036622,104710.0,104700.0,0.03553023]
[1750386701867,6.47683733,104710.0,104700.0,0.03553023]
[1750386702331,6.48638733,104710.0,104700.0,0.03437023]
[1750386702776,6.29042733,104710.0,104700.0,0.03437023]
[1750386702983,6.4863896,104710.0,104700.0,0.03437599]
[1750386703394,6.47968805,104710.0,104700.0,0.03437599]
[1750386703620,6.48639302,104710.0,104700.0,0.03437599]
[1750386704457,6.29043302,104710.0,104700.0,0.03437599]
[1750386704668,6.47009302,104710.0,104700.0,0.03553599]
[1750386705104,6.47009382,104710.0,104700.0,0.03553599]
[1750386708295,6.49867662,104710.0,104700.0,0.03553599]
[1750386708494,6.49197085,104710.0,104700.0,0.01766]
[1750386708711,6.49868371,104710.0,104700.0,0.03556553]
[1750386709155,6.29601085,104710.0,104700.0,0.01766]
[1750386709496,6.49201085,104710.0,104700.0,0.01766]
[1750386709838,6.06653085,104710.0,104700.0,0.01766]
[1750386710058,5.69458583,104710.0,104700.0,0.24320363]
[1750386710260,5.89058583,104710.0,104700.0,0.05218167]
[1750386710459,5.88386692,104710.0,104700.0,0.05218167]
[1750386711028,5.88386692,104710.0,104700.0,0.24320363]
[1750386711253,5.88386692,104710.0,104700.0,0.05217484]
[1750386712064,5.91244972,104710.0,104700.0,0.05217484]
[1750386712712,5.91244972,104710.0,104700.0,0.05217421]
[1750386712915,5.91244972,104710.0,104700.0,0.24319617]
[1750386713119,5.91244972,104710.0,104700.0,0.05217421]
[1750386713328,5.91244972,104710.0,104700.0,0.24319617]
[1750386713537,5.91244972,104710.0,104700.0,0.05217421]
[1750386713966,5.88386692,104710.0,104700.0,0.05217421]
[1750386715029,5.88386692,104710.0,104700.0,0.24319617]
[1750386715453,5.88386692,104710.0,104700.0,0.03426]
[1750386715662,5.88386692,104710.0,104700.0,0.05216705]
[1750386716073,5.68786692,104710.0,104700.0,0.05216705]
[1750386716267,5.88378692,104710.0,104700.0,0.05216705]
[1750386716513,5.88378692,104710.0,104700.0,0.24318901]
[1750386717123,5.691041,104710.0,104700.0,0.05216705]
[1750386717385,5.535361,104710.0,104700.0,0.24318901]
[1750386717616,5.691041,104710.0,104700.0,0.24318901]
[1750386718737,5.68149109,104710.0,104700.0,0.24318901]
[1750386718956,5.52581109,104710.0,104700.0,0.24318901]
[1750386719173,5.59521096,104710.0,104700.0,0.24318901]
[1750386719396,5.92621216,104710.0,104700.0,0.24318901]
[1750386720468,5.92621216,104710.0,104700.0,0.22528196]
[1750386720883,5.90334592,104710.0,104700.0,0.22528196]
[1750386721069,5.57234472,104710.0,104700.0,0.22528196]
[1750386721279,5.90334592,104710.0,104700.0,0.22528196]
[1750386721462,5.92621805,104710.0,104700.0,0.22528196]
[1750386721833,5.77057805,104710.0,104700.0,0.23483305]
[1750386722016,5.72560715,104710.0,104700.0,0.24438396]
[1750386722256,5.91661087,104710.0,104700.0,0.23483305]
[1750386722466,5.90324892,104710.0,104700.0,0.24438405]
[1750386722718,5.90324892,104710.0,104700.0,0.23483305]
[1750386723553,5.70736892,104710.0,104700.0,0.23483305]
[1750386723720,5.90320892,104710.0,104700.0,0.23483305]
[1750386723921,5.90320892,104710.0,104700.0,0.24438405]
[1750386724134,5.69310493,104710.0,104700.0,0.25393496]
[1750386724526,5.89365883,104710.0,104700.0,0.23483305]
[1750386724720,5.53750493,104710.0,104700.0,0.24438396]
[1750386724927,5.69310493,104710.0,104700.0,0.25393478]
[1750386725161,5.69310493,104710.0,104700.0,0.26348551]
[1750386725356,5.71220429,104710.0,104700.0,0.25393478]
[1750386725662,0.89944992,104710.0,104700.0,0.26348533]
[1750386725871,0.90899983,104710.0,104700.0,0.26348551]
[1750386726072,0.90899983,104710.0,104700.0,0.27303615]
[1750386726598,0.90899983,104710.0,104700.0,0.26348551]
[1750386726951,0.89744992,104710.0,104700.0,0.27303561]
[1750386727176,0.89844992,104710.0,104700.0,0.27303561]
[1750386727403,0.89844992,104710.0,104700.0,0.2634847]
[1750386727623,0.89644992,104710.0,104700.0,0.27303515]
[1750386727834,0.73134028,104710.0,104700.0,0.27303515]
[1750386728039,0.73234028,104710.0,104700.0,0.27303515]
[1750386728646,0.7418901,104710.0,104700.0,0.2634847]
[1750386729053,0.73234028,104710.0,104700.0,0.27303515]
[1750386730548,0.73234028,104710.0,104700.0,0.2634847]
[1750386730766,0.7418901,104710.0,104700.0,0.2634847]
[1750386731208,0.73234028,104710.0,104700.0,0.2634847]
[1750386731431,0.7418901,104710.0,104700.0,0.2634847]
[1750386731665,0.73234028,104710.0,104700.0,0.27303515]
[1750386731887,0.7418901,104710.0,104700.0,0.2634847]
[1750386732630,0.73234028,104710.0,104700.0,0.27303515]
[1750386733987,0.72279065,104710.0,104700.0,0.27303515]
[1750386734249,0.73234019,104710.0,104700.0,0.27303515]
[1750386734700,0.74188992,104710.0,104700.0,0.27303515]
[1750386736154,0.73234019,104710.0,104700.0,0.27303515]
[1750386736567,0.74188992,104710.0,104700.0,0.27303515]
[1750386737209,0.40133899,104710.0,104700.0,0.27303515]
[1750386737417,0.73234019,104710.0,104700.0,0.27303515]
[1750386738301,0.74188992,104710.0,104700.0,0.27303515]
[1750386738443,0.73234019,104710.0,104700.0,0.27303515]
[1750386738634,0.74188982,104710.0,104700.0,0.27303515]
[1750386738858,0.342,104710.0,104700.0,0.27303515]
[1750386739066,0.6730012,104710.0,104700.0,0.27303515]
[1750386739284,0.6730012,104710.0,104700.0,0.42843515]
[1750386739924,0.6720012,104710.0,104700.0,0.42843515]
[1750386740201,0.6710012,104710.0,104700.0,0.42843515]
[1750386740358,0.6710012,104710.0,104700.0,0.42943515]
[1750386740578,0.6710012,104710.0,104700.0,0.43043515]
[1750386742470,0.34,104710.0,104700.0,0.43043515]
[1750386742695,0.6710012,104710.0,104700.0,0.43043515]
[1750386742909,0.71765065,104710.0,104700.0,0.20952196]
[1750386743122,0.70810056,104710.0,104700.0,0.22177451]
[1750386743329,0.71765056,104710.0,104700.0,0.21345387]
[1750386743744,5.72136846,104710.0,104700.0,0.21345405]
[1750386743979,5.72136846,104710.0,104700.0,0.22300496]
[1750386744187,5.72136846,104710.0,104700.0,0.21345405]
[1750386744421,5.72136846,104710.0,104700.0,0.22300496]
[1750386744634,5.71181892,104710.0,104700.0,0.20390305]
[1750386744843,5.71181892,104710.0,104700.0,0.21345396]
[1750386746297,5.71181892,104710.0,104700.0,0.20390305]
[1750386746506,5.7022691,104710.0,104700.0,0.21345405]
[1750386746719,5.8575891,104710.0,104700.0,0.21222405]
[1750386747555,5.8575891,104710.0,104700.0,0.22177496]
[1750386748205,5.8575891,104710.0,104700.0,0.21222405]
[1750386748401,5.8480391,104710.0,104700.0,0.20267305]
[1750386748642,5.8480391,104710.0,104700.0,0.21222405]
[1750386749071,5.8480391,104710.0,104700.0,0.22177496]
[1750386749266,5.8480391,104710.0,104700.0,0.22300496]
[1750386749834,5.8480391,104710.0,104700.0,0.23255578]
[1750386751536,5.8480391,104710.0,104700.0,0.20390305]
[1750386751743,5.8480391,104710.0,104700.0,0.19312196]
[1750386751959,5.8480391,104710.0,104700.0,0.20267305]
[1750386752216,5.8480391,104710.0,104700.0,0.21222405]
[1750386753703,5.8880791,104710.0,104700.0,0.21222405]
[1750386753913,5.8880791,104710.0,104700.0,0.20267305]
[1750386754309,5.8880791,104710.0,104700.0,0.21222405]
[1750386754874,6.2202579,104710.0,104700.0,0.21222405]
[1750386755760,6.2202579,104710.0,104700.0,0.20267305]
[1750386755990,6.32348665,104710.0,104700.0,0.0021]
[1750386756203,6.34760383,104710.0,104700.0,0.0021]
[1750386756630,6.67919383,104710.0,104700.0,0.0021]
[1750386756878,6.70782777,104710.0,104700.0,0.0021]
[1750386757105,6.37623777,104710.0,104700.0,0.0021]
[1750386757962,6.70782777,104710.0,104700.0,0.0021]
[1750386758379,6.37623777,104710.0,104700.0,0.0011]
[1750386758580,6.70882777,104710.0,104700.0,0.0011]
[1750386759014,6.37747291,104710.0,104700.0,0.0001]
[1750386759241,6.41001807,104710.0,104700.0,0.0001]
[1750386759697,6.37747291,104710.0,104700.0,0.0001]
[1750386766010,6.39327291,104710.0,104700.0,0.0001]
[1750386766603,6.36463897,104710.0,104700.0,0.0001]
[1750386771219,6.02463897,104710.0,104700.0,0.0001]
[1750386773301,6.36463897,104710.0,104700.0,0.0001]
[1750386777351,0.54057287,104700.0,104690.0,0.0001]
[1750386777569,6.27461094,104700.0,104690.0,0.0001]
[1750386777998,6.30331794,104700.0,104690.0,0.0001]
[1750386778432,6.32618478,104700.0,104690.0,0.0001]
[1750386778667,6.32618478,104700.0,104690.0,0.0011]
[1750386778908,6.65789421,104700.0,104690.0,0.0011]
[1750386779121,6.65789424,104700.0,104690.0,0.0011]
[1750386779337,6.65789424,104700.0,104690.0,0.0021]
[1750386780927,6.65789424,104700.0,104690.0,0.01998021]
[1750386782115,6.67489424,104700.0,104690.0,0.01998021]
[1750386782344,6.67607424,104700.0,104690.0,0.01998021]
[1750386782749,6.70470818,104700.0,104690.0,0.01998999]
[1750386783391,6.70470818,104700.0,104690.0,0.01999]
[1750386785329,6.46805228,104700.0,104690.0,0.01999]
[1750386785548,6.65789424,104700.0,104690.0,0.01999]
[1750386786211,6.65789424,104700.0,104690.0,0.02002128]
[1750386789165,6.65789424,104700.0,104690.0,0.02001839]
[1750386790137,6.7081194,104700.0,104690.0,0.02001839]
[1750386790350,6.65907424,104700.0,104690.0,0.02001839]
[1750386790568,6.65907424,104700.0,104690.0,0.0021]
[1750386790785,6.65907424,104700.0,104690.0,0.02001538]
[1750386791225,6.65907424,104700.0,104690.0,0.01901538]
[1750386791771,6.66007424,104700.0,104690.0,0.01801538]
[1750386791980,6.66007424,104700.0,104690.0,0.01801454]
[1750386792404,6.66506056,104700.0,104690.0,0.01801454]
[1750386793255,6.66388056,104700.0,104690.0,0.01801454]
[1750386793467,6.66388056,104700.0,104690.0,0.01801349]
[1750386794583,6.66388056,104700.0,104690.0,0.01916349]
[1750386794833,6.66388056,104700.0,104690.0,0.0191621]
[1750386795315,6.6925145,104700.0,104690.0,0.0180121]
[1750386797734,6.6925145,104700.0,104690.0,0.01801232]
[1750386800299,6.7324745,104700.0,104690.0,0.01801232]
[1750386800525,6.7324745,104700.0,104690.0,0.0001]
[1750386800698,6.7324745,104700.0,104690.0,0.0180127]
[1750386803560,6.7322745,104700.0,104690.0,0.0180127]
[1750386805061,6.7322745,104700.0,104690.0,0.01801535]
[1750386806348,6.7322745,104700.0,104690.0,0.01801668]
[1750386807745,6.35459237,104700.0,104690.0,0.03657668]
[1750386807974,6.35459237,104700.0,104690.0,0.05427668]
[1750386808230,6.34960605,104700.0,104690.0,0.05427668]
[1750386808663,6.34960605,104700.0,104690.0,0.03657668]
[1750386808938,6.68131424,104700.0,104690.0,0.03657668]
[1750386809639,5.2910168,104700.0,104690.0,0.25456871]
[1750386809898,1.08762793,104700.0,104690.0,0.27367208]
[1750386810127,0.72327729,104700.0,104690.0,0.28322363]
[1750386810366,1.03306765,104700.0,104690.0,0.292775]
[1750386810606,1.07282756,104700.0,104690.0,0.292775]
[1750386810841,0.71372674,104700.0,104690.0,0.292775]
[1750386811061,1.06327729,104700.0,104690.0,0.29275635]
[1750386811280,1.06327729,104700.0,104690.0,0.27485832]
[1750386811724,0.39986091,104700.0,104690.0,0.27485832]
[1750386811943,1.07282802,104700.0,104690.0,0.26530695]
[1750386812381,1.07282793,104700.0,104690.0,0.27485841]
[1750386812563,0.39986091,104700.0,104690.0,0.27485796]
[1750386812838,1.05372674,104700.0,104690.0,0.27485796]
[1750386813053,1.06327719,104700.0,104690.0,0.27485796]
[1750386813297,1.00441638,104700.0,104690.0,0.27485796]
[1750386813519,1.04417638,104700.0,104690.0,0.27485796]
[1750386813744,1.01396665,104700.0,104690.0,0.27485796]
[1750386814003,1.00441638,104700.0,104690.0,0.27485796]
[1750386814224,1.04417638,104700.0,104690.0,0.27485796]
[1750386815278,1.04413638,104700.0,104690.0,0.27485796]
[1750386815487,0.38072,104700.0,104690.0,0.27485796]
[1750386815701,1.04413638,104700.0,104690.0,0.27485796]
[1750386816261,1.04413638,104700.0,104690.0,0.27585796]
[1750386816516,1.00441638,104700.0,104690.0,0.27585796]
[1750386816730,0.67270819,104700.0,104690.0,0.27585796]
[1750386816945,0.67170819,104700.0,104690.0,0.27585796]
[1750386817584,0.67170819,104700.0,104690.0,0.27685796]
[1750386818236,1.01296665,104700.0,104690.0,0.2579555]
[1750386818451,1.01296665,104700.0,104690.0,0.26750687]
[1750386819081,1.03206765,104700.0,104690.0,0.24840386]
[1750386819287,1.04161838,104700.0,104690.0,0.2770586]
[1750386819490,1.04161838,104700.0,104690.0,0.26750723]
[1750386819697,1.04161829,104700.0,104690.0,0.2770586]
[1750386820164,1.04161829,104700.0,104690.0,0.26750723]
[1750386820404,1.09088911,104700.0,104690.0,0.26750723]
[1750386820613,1.09088911,104700.0,104690.0,0.26750732]
[1750386821054,1.09088984,104700.0,104690.0,0.25795577]
[1750386821263,1.09088984,104700.0,104690.0,0.26750732]
[1750386821489,1.09088975,104700.0,104690.0,0.26750732]
[1750386821703,1.09088975,104700.0,104690.0,0.25795577]
[1750386822313,1.09088975,104700.0,104690.0,0.26750732]
[1750386822521,1.09088975,104700.0,104690.0,0.25795577]
[1750386822736,1.09089039,104700.0,104690.0,0.25795577]
[1750386822943,1.07178848,104700.0,104690.0,0.26750732]
[1750386823291,1.03206848,104700.0,104690.0,0.26750732]
[1750386823501,1.08133948,104700.0,104690.0,0.25795577]
[1750386824570,1.08133948,104700.0,104690.0,0.24840413]
[1750386824784,1.27236144,104700.0,104690.0,0.26750768]
[1750386825659,1.27236144,104700.0,104690.0,0.27705932]
[1750386825874,1.27236144,104700.0,104690.0,0.26750768]
[1750386827915,1.26281089,104700.0,104690.0,0.25795595]
[1750386828129,1.26281089,104700.0,104690.0,0.27705932]
[1750386829393,1.26281089,104700.0,104690.0,0.26750768]
[1750386829597,1.26281089,104700.0,104690.0,0.27705932]
[1750386829961,1.27236198,104700.0,104690.0,0.27705932]
[1750386830556,1.07178893,104700.0,104690.0,0.27705886]
[1750386831193,1.08134002,104700.0,104690.0,0.27705886]
[1750386831404,1.08134002,104700.0,104690.0,0.26750731]
[1750386831630,1.08134002,104700.0,104690.0,0.27705886]
[1750386831810,0.39882155,104700.0,104690.0,0.25795567]
[1750386832058,1.06223793,104700.0,104690.0,0.26750731]
[1750386832276,1.07178884,104700.0,104690.0,0.27705877]
[1750386832480,1.07178884,104700.0,104690.0,0.26750695]
[1750386832690,0.72097846,104700.0,104690.0,0.27705832]
[1750386833114,0.71142819,104700.0,104690.0,0.27705832]
[1750386834350,0.72097846,104700.0,104690.0,0.27705832]
[1750386834996,0.73052891,104700.0,104690.0,0.27705832]
[1750386835438,0.72097846,104700.0,104690.0,0.27705832]
[1750386835862,0.73052882,104700.0,104690.0,0.27705832]
[1750386836073,0.72097846,104700.0,104690.0,0.27705832]
[1750386836465,0.71142819,104700.0,104690.0,0.27705832]
[1750386836903,0.72097846,104700.0,104690.0,0.27705832]
[1750386837340,0.73052882,104700.0,104690.0,0.27705832]
[1750386838442,0.39052882,104700.0,104690.0,0.27705832]
[1750386838643,0.35080882,104700.0,104690.0,0.27705832]
[1750386838852,0.68251701,104700.0,104690.0,0.27705832]
[1750386839068,0.69206746,104700.0,104690.0,0.27705832]
[1750386839278,0.71116874,104700.0,104690.0,0.27705832]
[1750386839792,0.71116938,104700.0,104690.0,0.24035531]
[1750386840237,0.89264098,104700.0,104690.0,0.23080376]
[1750386840459,0.87353998,104700.0,104690.0,0.23080376]
[1750386841137,1.21353998,104700.0,104690.0,0.24990668]
[1750386841324,1.23264207,104700.0,104690.0,0.24990668]
[1750386843059,1.04162011,104700.0,104690.0,0.24990668]
[1750386843797,1.03206902,104700.0,104690.0,0.24990668]
[1750386844464,1.02251802,104700.0,104690.0,0.24990668]
[1750386844886,1.22309098,104700.0,104690.0,0.24990668]
[1750386845454,1.03206902,104700.0,104690.0,0.24990668]
[1750386846009,1.02251756,104700.0,104690.0,0.24990668]
[1750386846230,1.03206847,104700.0,104690.0,0.24990668]
[1750386847747,1.23264143,104700.0,104690.0,0.24990668]
[1750386848182,1.04161947,104700.0,104690.0,0.24990668]
[1750386849811,1.23264143,104700.0,104690.0,0.24990668]
[1750386850028,1.24219252,104700.0,104690.0,0.24990668]
[1750386850691,1.04161947,104700.0,104690.0,0.24990668]
[1750386851597,1.23264143,104700.0,104690.0,0.24990668]
[1750386852058,1.04161947,104700.0,104690.0,0.24990668]
[1750386852505,1.02251756,104700.0,104690.0,0.24990668]
[1750386852940,1.06211756,104700.0,104690.0,0.24990668]
[1750386853984,1.06211747,104700.0,104690.0,0.24990668]
[1750386854201,1.07166829,104700.0,104690.0,0.24990668]
[1750386855532,1.06211747,104700.0,104690.0,0.24990668]
[1750386855746,1.07166838,104700.0,104690.0,0.24990668]
[1750386856623,1.03206838,104700.0,104690.0,0.24990668]
[1750386860259,1.03206829,104700.0,104690.0,0.24990668]
[1750386860461,1.02251747,104700.0,104690.0,0.24990668]
[1750386861541,1.03206829,104700.0,104690.0,0.24874668]
[1750386861754,1.24944125,104700.0,104690.0,0.23134668]
[1750386861964,1.08846829,104700.0,104690.0,0.23134668]
[1750386866732,1.0980192,104700.0,104690.0,0.23134668]
[1750386869995,5.58204769,104700.0,104690.0,0.0021]
[1750386870218,6.24665407,104700.0,104690.0,0.0021]
[1750386875823,6.24665407,104700.0,104690.0,0.19314021]
[1750386876033,6.23710325,104700.0,104690.0,0.20269222]
[1750386876257,6.22755234,104700.0,104690.0,0.20269222]
[1750386876513,6.22755234,104700.0,104690.0,0.19314021]
[1750386876982,6.22636234,104700.0,104690.0,0.0021]
[1750386878759,6.22636234,104700.0,104690.0,0.19314021]
[1750386878982,6.22636234,104700.0,104690.0,0.20269222]
[1750386880550,6.22636234,104700.0,104690.0,0.0021]
[1750386881688,6.20856234,104700.0,104690.0,0.19314021]
[1750386882337,6.20856234,104700.0,104690.0,0.20269212]
[1750386882773,6.20856234,104700.0,104690.0,0.0021]
[1750386882986,6.22696234,104700.0,104690.0,0.0021]
[1750386883851,6.22696234,104700.0,104690.0,0.19314021]
[1750386884125,6.20856234,104700.0,104690.0,0.19314021]
[1750386884340,6.20856234,104700.0,104690.0,0.0021]
[1750386884790,6.20856234,104700.0,104690.0,0.19314021]
[1750386885518,6.20856234,104700.0,104690.0,0.20269222]
[1750386886854,6.20856234,104700.0,104690.0,0.21224413]
[1750386887377,6.05400234,104700.0,104690.0,0.21224413]
[1750386887578,6.20852234,104700.0,104690.0,0.21224413]
[1750386888926,6.20852234,104700.0,104690.0,0.22179595]
[1750386889567,6.20852234,104700.0,104690.0,0.20269222]
[1750386890021,6.20852234,104700.0,104690.0,0.0021]
[1750386893472,6.1518658,104700.0,104690.0,0.0021]
[1750386894412,6.1518658,104700.0,104690.0,0.19314021]
[1750386894661,6.1518658,104700.0,104690.0,0.20269222]
[1750386900487,5.9577458,104700.0,104690.0,0.21345413]